fUSD/lending_fUSD_20260427
["ID","MTS","AMOUNT","RATE_DAILY","PERIOD"]
[421212618,1777260648744,-386.0,0.00013699,2]
[421212619,1777260648753,-386.0,0.00013699,2]
[421212620,1777260648762,-386.0,0.00013699,2]
[421212621,1777260648771,-386.0,0.00013699,2]
[421212622,1777260648780,-386.0,0.00013699,2]
[421212623,1777260648789,-386.0,0.00013699,2]
[421212624,1777260648799,-386.0,0.00013699,2]
[421212625,1777260648808,-386.0,0.00013699,2]
[421212626,1777260648818,-386.0,0.00013699,2]
[421212627,1777260648827,-386.0,0.00013699,2]
[421212628,1777260648836,-386.0,0.00013699,2]
[421212629,1777260648846,-386.0,0.00013699,2]
[421212630,1777260648855,-386.0,0.00013699,2]
[421212631,1777260648865,-386.0,0.00013699,2]
[421212632,1777260648875,-386.0,0.00013699,2]
[421212633,1777260648885,-384.0,0.00013699,2]
[421212634,1777260648894,-384.0,0.00013699,2]
[421212635,1777260648904,-384.0,0.00013699,2]
[421212636,1777260648914,-384.0,0.00013699,2]
[421212637,1777260648923,-384.0,0.00013699,2]
[421212638,1777260648932,-384.0,0.00013699,2]
[421212639,1777260648942,-384.0,0.00013699,2]
[421212640,1777260648952,-384.0,0.00013699,2]
[421212641,1777260648962,-384.0,0.00013699,2]
[421212642,1777260648971,-391.0,0.00013699,2]
[421212643,1777260648980,-391.0,0.00013699,2]
[421212644,1777260648990,-386.0,0.00013699,2]
[421212645,1777260648999,-386.0,0.00013699,2]
[421212646,1777260649009,-386.0,0.00013699,2]
[421212647,1777260649019,-386.0,0.00013699,2]
[421212648,1777260649028,-386.0,0.00013699,2]
[421212649,1777260649038,-386.0,0.00013699,2]
[421212650,1777260649047,-386.0,0.00013699,2]
[421212651,1777260649056,-386.0,0.00013699,2]
[421212652,1777260649066,-386.0,0.00013699,2]
[421212653,1777260649075,-386.0,0.00013699,2]
[421212654,1777260649084,-386.0,0.00013699,2]
[421212655,1777260649094,-386.0,0.00013699,2]
[421212656,1777260649103,-386.0,0.00013699,2]
[421212657,1777260649113,-386.0,0.00013699,2]
[421212658,1777260649122,-386.0,0.00013699,2]
[421212659,1777260649131,-386.0,0.00013699,2]
[421212660,1777260649140,-386.0,0.00013699,2]
[421212661,1777260649149,-380.0,0.00013699,2]
[421212662,1777260649159,-380.0,0.00013699,2]
[421212663,1777260649168,-380.0,0.00013699,2]
[421212664,1777260649177,-380.0,0.00013699,2]
[421212665,1777260649187,-380.0,0.00013699,2]
[421212666,1777260649196,-380.0,0.00013699,2]
[421212667,1777260649205,-380.0,0.00013699,2]
[421212668,1777260649214,-380.0,0.00013699,2]
[421212669,1777260649222,-380.0,0.00013699,2]
[421212670,1777260649231,-380.0,0.00013699,2]
[421212671,1777260649240,-380.0,0.00013699,2]
[421212672,1777260649250,-380.0,0.00013699,2]
[421212673,1777260649260,-380.0,0.00013699,2]
[421212674,1777260649269,-380.0,0.00013699,2]
[421212675,1777260649279,-380.0,0.00013699,2]
[421212676,1777260649288,-380.0,0.00013699,2]
[421212677,1777260649298,-380.0,0.00013699,2]
[421212678,1777260649308,-380.0,0.00013699,2]
[421212679,1777260649316,-380.0,0.00013699,2]
[421212680,1777260649326,-380.0,0.00013699,2]
[421212681,1777260649335,-380.0,0.00013699,2]
[421212682,1777260649344,-380.0,0.00013699,2]
[421212683,1777260649353,-294.88386803,0.00013699,2]
[421212684,1777260649363,-500.0,0.00013699,2]
[421212685,1777260649372,-500.0,0.00013699,2]
[421212686,1777260649382,-500.0,0.00013699,2]
[421212687,1777260649391,-500.0,0.00013699,2]
[421212688,1777260649400,-500.0,0.00013699,2]
[421212689,1777260649410,-500.0,0.00013699,2]
[421212690,1777260649419,-500.0,0.00013699,2]
[421212691,1777260649428,-500.0,0.00013699,2]
[421212692,1777260649438,-336.6590812,0.00013699,2]
[421212693,1777260649447,-500.0,0.00013699,2]
[421212694,1777260649457,-500.0,0.00013699,2]
[421212695,1777260649467,-500.0,0.00013699,2]
[421212696,1777260649476,-500.0,0.00013699,2]
[421212697,1777260649486,-500.0,0.00013699,2]
[421212698,1777260649495,-500.0,0.00013699,2]
[421212699,1777260649504,-500.0,0.00013699,2]
[421212700,1777260649512,-500.0,0.00013699,2]
[421212701,1777260649522,-500.0,0.00013699,2]
[421212702,1777260649531,-500.0,0.00013699,2]
[421212703,1777260649540,-500.0,0.00013699,2]
[421212704,1777260649549,-179.04,0.000137,2]
[421212705,1777260649558,-162.86,0.000137,2]
[421212706,1777260649567,-11085.51,0.000137,2]
[421212707,1777260649576,-11085.51,0.000137,2]
[421212708,1777260649585,-200.0,0.00013836,2]
[421212709,1777260649594,-151.0,0.00013836,2]
[421212710,1777260649604,-2000.0,0.00013962,2]
[421212711,1777260649612,-500.0,0.00013992,2]
[421212712,1777260649621,-1500.0,0.00014,2]
[421212713,1777260649631,-501.0233892,0.00014016,2]
[421212714,1777260649640,-36345.97396828,0.00014062,2]
[421212715,1777260649649,-155.94716998,0.0001413,2]
[421212716,1777260649659,-270.0455652,0.00014148,2]
[421212717,1777260649668,-1266.0,0.00014163,2]
[421212718,1777260649677,-927.0,0.00014163,2]
[421212719,1777260649686,-1220.0,0.00014163,2]
[421212720,1777260649695,-1048.0,0.00014163,2]
[421212721,1777260649704,-3531.0,0.00014163,2]
[421212722,1777260649714,-150.0,0.00014215,2]
[421212723,1777260649724,-150.0,0.00014215,2]
[421212724,1777260649733,-150.0,0.00014215,2]
[421212725,1777260649742,-150.0,0.00014215,2]
[421212726,1777260649751,-150.0,0.00014215,2]
[421212727,1777260649760,-150.0,0.00014215,2]
[421212728,1777260649769,-1889.0,0.00014218,2]
[421212729,1777260649779,-200.0,0.00014384,2]
[421212730,1777260649788,-151.0,0.00014384,2]
[421212731,1777260649798,-1019.82,0.00014504,2]
[421212732,1777260649807,-4753.84,0.00014504,2]
[421212733,1777260649816,-1466.53,0.00014504,2]
[421212734,1777260649825,-6212.15,0.00014504,2]
[421212735,1777260649834,-500.0,0.00014536,2]
[421212736,1777260649843,-1100.0,0.00014536,2]
[421212737,1777260649852,-452.47,0.00014548,60]
[421212738,1777260649862,-280.03725112,0.00014696,2]
[421212739,1777260649872,-157.0,0.00014702,2]
[421212740,1777260649883,-2500.0,0.00014748,3]
[421212741,1777260649892,-501.0,0.00014849,2]
[421212742,1777260649901,-229.87477654,0.000149,2]
[421212743,1777260649911,-229.87477654,0.000149,2]
[421212744,1777260649920,-229.87477654,0.000149,2]
[421212745,1777260649930,-290.18176836,0.00014908,2]
[421212746,1777260649939,-200.0,0.00014932,2]
[421212747,1777260649948,-151.0,0.00014932,2]
[421212748,1777260649958,-2071.65244833,0.00015,2]
[421212749,1777260649967,-426.85137114,0.00015,2]
[421212750,1777260649977,-160.83,0.00015,2]
[421212751,1777260649989,-208.92,0.00015,2]
[421212752,1777260650001,-174.89,0.00015,2]
[421212753,1777260650012,-224.2,0.00015,2]
[421212754,1777260650023,-300.0,0.00015,2]
[421212755,1777260650034,-160.0,0.00015,2]
[421212756,1777260650177,-150.0,0.00015068,2]
[421212757,1777260650187,-290.39862941,0.00015244,2]
[421212758,1777260650197,-1517.64,0.000153,2]
[421212759,1777260650206,-513.77222787,0.000154,2]
[421212760,1777260650216,-155.0,0.00015476,2]
[421212761,1777260650225,-157.0,0.00015476,2]
[421212762,1777260650235,-238.0,0.00015476,2]
[421212763,1777260650244,-311.0,0.00015476,2]
[421212764,1777260650254,-329.0,0.00015476,2]
[421212765,1777260650263,-164.0,0.00015476,2]
[421212766,1777260650274,-771.0,0.00015476,2]
[421212767,1777260650282,-385.0,0.00015476,2]
[421212768,1777260650294,-316.0,0.00015476,2]
[421212769,1777260650304,-2331.0,0.00015476,2]
[421212770,1777260650314,-200.0,0.0001548,2]
[421212771,1777260650323,-151.0,0.0001548,2]
[421212772,1777260650332,-1234.32445834,0.000155,2]
[421212773,1777260650342,-1592.62850532,0.00015634,2]
[421212774,1777260650352,-157.0,0.00015702,2]
[421212775,1777260650362,-670.58624095,0.00015789,2]
[421212776,1777260650372,-644.79446246,0.00015789,2]
[421212777,1777260650381,-301.1433787,0.00015792,2]
[421212778,1777260650391,-500.0,0.00015906,2]
[421212779,1777260650400,-152.01153612,0.0001596,2]
[421212780,1777260650410,-160.0,0.00016,3]
[421212781,1777260650420,-162.27045424,0.00016,3]
[421212782,1777260650429,-419.01571261,0.00016,2]
[421212783,1777260650438,-200.0,0.00016028,2]
[421212784,1777260650448,-151.0,0.00016028,2]
[421212785,1777260650457,-170.29,0.00016116,2]
[421212786,1777260650466,-170.29,0.00016116,2]
[421212787,1777260650476,-170.29,0.00016116,2]
[421212788,1777260650485,-179.04,0.000162,2]
[421212789,1777260650495,-500.0,0.00016437,2]
[421212790,1777260650504,-1394.1,0.00016438,2]
[421212791,1777260650513,-163.49453145,0.00016438,2]
[421212792,1777260650522,-163.49453145,0.00016438,2]
[421212793,1777260650531,-163.49453145,0.00016438,2]
[421212794,1777260650540,-500.37520915,0.00016438,2]
[421212795,1777260650551,-251.12182,0.00016438,2]
[421212796,1777260650560,-251.12182,0.00016438,2]
[421212797,1777260650569,-251.12182,0.00016438,2]
[421212798,1777260650578,-251.12182,0.00016438,2]
[421212799,1777260650587,-251.12182,0.00016438,2]
[421212800,1777260650596,-251.12182,0.00016438,2]
[421212801,1777260650605,-251.12182,0.00016438,2]
[421212802,1777260650614,-251.12182,0.00016438,2]
[421212803,1777260650623,-251.12182,0.00016438,2]
[421212804,1777260650632,-251.12182,0.00016438,2]
[421212805,1777260650642,-251.12182,0.00016438,2]
[421212806,1777260650652,-251.12182,0.00016438,2]
[421212807,1777260650661,-251.12182,0.00016438,2]
[421212808,1777260650670,-251.12182,0.00016438,2]
[421212809,1777260650679,-251.12182,0.00016438,2]
[421212810,1777260650688,-251.12182,0.00016438,2]
[421212811,1777260650697,-251.12182,0.00016438,2]
[421212812,1777260650707,-251.12182,0.00016438,2]
[421212813,1777260650716,-251.12182,0.00016438,2]
[421212814,1777260650726,-251.121821,0.00016438,2]
[421212815,1777260650736,-340.68326892,0.00016438,2]
[421212816,1777260650745,-500.0,0.00016438,2]
[421212817,1777260650755,-255.466714,0.00016438,2]
[421212818,1777260650764,-255.466714,0.00016438,2]
[421212819,1777260650774,-255.466714,0.00016438,2]
[421212820,1777260650782,-255.466714,0.00016438,2]
[421212821,1777260650792,-255.466714,0.00016438,2]
[421212822,1777260650802,-255.466714,0.00016438,2]
[421212823,1777260650811,-255.466714,0.00016438,2]
[421212824,1777260650820,-255.466714,0.00016438,2]
[421212825,1777260650829,-255.466714,0.00016438,2]
[421212826,1777260650839,-255.466714,0.00016438,2]
[421212827,1777260650848,-255.466714,0.00016438,2]
[421212828,1777260650858,-255.466714,0.00016438,2]
[421212829,1777260650867,-255.466714,0.00016438,2]
[421212830,1777260650876,-255.466714,0.00016438,2]
[421212831,1777260650887,-255.466714,0.00016438,2]
[421212832,1777260650896,-255.466714,0.00016438,2]
[421212833,1777260650906,-255.466714,0.00016438,2]
[421212834,1777260650915,-255.466714,0.00016438,2]
[421212835,1777260650925,-255.466714,0.00016438,2]
[421212836,1777260650935,-255.466716,0.00016438,2]
[421212837,1777260650944,-386.15782047,0.00016438,2]
[421212838,1777260650954,-501.51488157,0.00016438,2]
[421212839,1777260650963,-500.70180495,0.00016438,2]
[421212840,1777260650973,-151.0,0.00016438,2]
[421212841,1777260650983,-151.0,0.00016438,2]
[421212842,1777260650993,-151.0,0.00016438,2]
[421212843,1777260651002,-151.0,0.00016438,2]
[421212844,1777260651011,-151.0,0.00016438,2]
[421212845,1777260651021,-151.0,0.00016438,2]
[421212846,1777260651030,-151.0,0.00016438,2]
[421212847,1777260651041,-151.0,0.00016438,2]
[421212848,1777260651052,-151.0,0.00016438,2]
[421212849,1777260651062,-151.0,0.00016438,2]
[421212850,1777260651072,-151.0,0.00016438,2]
[421212851,1777260651081,-151.0,0.00016438,2]
[421212852,1777260651091,-151.0,0.00016438,2]
[421212853,1777260651100,-151.0,0.00016438,2]
[421212854,1777260651110,-151.0,0.00016438,2]
[421212855,1777260651120,-151.0,0.00016438,2]
[421212856,1777260651130,-151.0,0.00016438,2]
[421212857,1777260651139,-151.0,0.00016438,2]
[421212858,1777260651149,-151.0,0.00016438,2]
[421212859,1777260651158,-151.0,0.00016438,2]
[421212860,1777260651167,-151.0,0.00016438,2]
[421212861,1777260651176,-151.0,0.00016438,2]
[421212862,1777260651186,-151.0,0.00016438,2]
[421212863,1777260651195,-151.0,0.00016438,2]
[421212864,1777260651205,-151.0,0.00016438,2]
[421212865,1777260651214,-151.0,0.00016438,2]
[421212866,1777260651223,-151.0,0.00016438,2]
[421212867,1777260651232,-151.0,0.00016438,2]
[421212868,1777260651242,-151.0,0.00016438,2]
[421212869,1777260651251,-151.0,0.00016438,2]
[421212870,1777260651261,-151.0,0.00016438,2]
[421212871,1777260651270,-151.0,0.00016438,2]
[421212872,1777260651280,-151.0,0.00016438,2]
[421212873,1777260651289,-151.0,0.00016438,2]
[421212874,1777260651299,-151.0,0.00016438,2]
[421212875,1777260651308,-151.0,0.00016438,2]
[421212876,1777260651318,-151.0,0.00016438,2]
[421212877,1777260651327,-151.0,0.00016438,2]
[421212878,1777260651336,-151.0,0.00016438,2]
[421212879,1777260651346,-151.0,0.00016438,2]
[421212880,1777260651355,-151.0,0.00016438,2]
[421212881,1777260651364,-151.0,0.00016438,2]
[421212882,1777260651373,-151.0,0.00016438,2]
[421212883,1777260651383,-273.641047,0.00016438,2]
[421212884,1777260651392,-500.0,0.00016438,2]
[421212885,1777260651401,-500.0,0.00016438,2]
[421212886,1777260651410,-520.00793125,0.00016438,2]
[421212887,1777260651419,-500.0,0.00016438,2]
[421212888,1777260651429,-211.47839474,0.00016438,2]
[421212889,1777260651438,-500.0,0.00016438,2]
[421212890,1777260651447,-167.4172563,0.00016476,2]
[421212891,1777260651456,-157.0,0.00016476,2]
[421212892,1777260651465,-238.0,0.00016476,2]
[421212893,1777260651474,-311.0,0.00016476,2]
[421212894,1777260651483,-329.0,0.00016476,2]
[421212895,1777260651492,-164.0,0.00016476,2]
[421212896,1777260651502,-771.0,0.00016476,2]
[421212897,1777260651511,-385.0,0.00016476,2]
[421212898,1777260651520,-316.0,0.00016476,2]
[421212899,1777260651530,-2331.0,0.00016476,2]
[421212900,1777260651539,-160.17450389,0.000165,2]
[421212901,1777260651549,-4404.7375801,0.00016532,2]
[421212902,1777260651558,-200.0,0.00016576,2]
[421212903,1777260651567,-151.0,0.00016576,2]
[421212904,1777260651577,-310.60473594,0.00016605,2]
[421212905,1777260651586,-157.0,0.00016702,2]
[421212906,1777260651595,-2010.00729467,0.00016763,2]
[421212907,1777260651604,-1000.0,0.00016986,2]
[421212908,1777260651613,-1000.0,0.00016986,2]
[421212909,1777260651623,-1068.09591371,0.00016986,2]
[421212910,1777260651632,-1000.0,0.00016986,2]
[421212911,1777260651641,-350.0,0.00017,2]
[421212912,1777260651651,-346.35928332,0.00017124,2]
[421212913,1777260651660,-191.28840593,0.00017124,2]
[421212914,1777260651670,-927.0,0.00017163,2]
[421212915,1777260651679,-1220.0,0.00017163,2]
[421212916,1777260651688,-423.729,0.00017163,2]
[421212917,1777260651698,-3531.0,0.00017163,2]
[421212918,1777260651708,-150.0,0.00017215,2]
[421212919,1777260651717,-1100.0,0.00017276,7]
[421212920,1777260651726,-157.0,0.00017476,2]
[421212921,1777260651735,-238.0,0.00017476,2]
[421212922,1777260651744,-311.0,0.00017476,2]
[421212923,1777260651754,-329.0,0.00017476,2]
[421212924,1777260651763,-164.0,0.00017476,2]
[421212925,1777260651772,-771.0,0.00017476,2]
[421212926,1777260651781,-385.0,0.00017476,2]
[421212927,1777260651791,-316.0,0.00017476,2]
[421212928,1777260651801,-2331.0,0.00017476,2]
[421212929,1777260651810,-1117.0,0.00017479,2]
[421212930,1777260651820,-152.0,0.00017513,7]
[421212931,1777260651829,-152.0,0.0001753,7]
[421212932,1777260651838,-206.42991897,0.00017534,2]
[421212933,1777260651848,-1500.0,0.00017534,2]
[421212934,1777260651857,-1500.0,0.00017534,2]
[421212935,1777260651867,-152.0,0.0001767,7]
[421212936,1777260651876,-157.0,0.00017702,2]
[421212937,1777260651885,-728.44,0.00017728,2]
[421212938,1777260651895,-3395.6,0.00017728,2]
[421212939,1777260651905,-1047.52,0.00017728,2]
[421212940,1777260651914,-4437.25,0.00017728,2]
[421212941,1777260651924,-192.93246662,0.0001786,2]
[421212942,1777260651934,-858.53333938,0.0001789,2]
[421212943,1777260651943,-637.97,0.00017899,2]
[421212944,1777260651952,-637.97,0.00017899,2]
[421212945,1777260651962,-637.97,0.00017899,2]
[421212946,1777260651971,-637.97,0.00017899,2]
[421212947,1777260651981,-638.20487517,0.00017899,2]
[421212948,1777260651990,-1464754.17515068,0.000179,2]
[421212949,1777260651999,-2900.0,0.000179,6]
[421212950,1777260652009,-205.10218146,0.00017982,2]
[421212951,1777260652019,-2000.0,0.00018082,2]
[421212952,1777260652028,-1506.40099609,0.00018082,2]
[421212953,1777260652038,-1117.0,0.00018399,2]
[421212954,1777260652048,-673.79113068,0.0001847,2]
[421212955,1777260652058,-1000.0,0.0001847,2]
[421212956,1777260652068,-1000.0,0.0001847,2]
[421212957,1777260652078,-1000.0,0.0001847,2]
[421212958,1777260652087,-500.0,0.0001847,2]
[421212959,1777260652098,-500.0,0.0001847,2]
[421212960,1777260652108,-157.0,0.00018476,2]
[421212961,1777260652118,-238.0,0.00018476,2]
[421212962,1777260652128,-311.0,0.00018476,2]
[421212963,1777260652139,-329.0,0.00018476,2]
[421212964,1777260652149,-164.0,0.00018476,2]
[421212965,1777260652159,-771.0,0.00018476,2]
[421212966,1777260652168,-385.0,0.00018476,2]
[421212967,1777260652178,-316.0,0.00018476,2]
[421212968,1777260652188,-2331.0,0.00018476,2]
[421212969,1777260652199,-695.39793187,0.00018528,2]
[421212970,1777260652209,-668.65185757,0.00018528,2]
[421212971,1777260652219,-1394.1,0.0001863,2]
[421212972,1777260652557,-349.39193028,0.0001863,2]
[421212973,1777260652589,-500.0,0.00018646,7]
[421212974,1777260652599,-157.0,0.00018702,2]
[421212975,1777260652608,-1000.0,0.0001897,2]
[421212976,1777260652618,-500.0,0.0001897,2]
[421212977,1777260652628,-400.0,0.00019,2]
[421212978,1777260652637,-500.0,0.00019176,2]
[421212979,1777260652646,-150.0,0.00019178,2]
[421212980,1777260652656,-150.0,0.00019178,2]
[421212981,1777260652665,-150.0,0.00019178,2]
[421212982,1777260652675,-187.64836574,0.00019178,2]
[421212983,1777260652685,-1117.0,0.00019367,2]
[421212984,1777260652698,-1100.0,0.00019468,7]
[421212985,1777260652709,-160.81880975,0.00019476,2]
[421212986,1777260652719,-238.0,0.00019476,2]
[421212987,1777260652729,-311.0,0.00019476,2]
[421212988,1777260652739,-329.0,0.00019476,2]
[421212989,1777260652749,-164.0,0.00019476,2]
[421212990,1777260652760,-771.0,0.00019476,2]
[421212991,1777260652769,-385.0,0.00019476,2]
[421212992,1777260652779,-316.0,0.00019476,2]
[421212993,1777260652789,-2331.0,0.00019476,2]
[421212994,1777260652799,-1200.0,0.000195,2]
[421212995,1777260652809,-500.0,0.0001957,2]
[421212996,1777260652819,-1000.0,0.0001957,2]
[421212997,1777260652829,-175.82908677,0.00019702,2]
[421212998,1777260652839,-904.0,0.0002,2]
[421212999,1777260652849,-290.0,0.0002,2]
[421213000,1777260652858,-2000.0,0.0002,2]
[421213001,1777260652868,-1047.6603,0.0002,2]
[421213002,1777260652878,-921.0,0.0002,2]
[421213003,1777260652889,-193.155,0.0002,2]
[421213004,1777260652899,-956.0,0.0002,2]
[421213005,1777260652908,-200.565681,0.0002,2]
[421213006,1777260652918,-868.0,0.0002,2]
[421213007,1777260652933,-150.0,0.0002,2]
[421213008,1777260652943,-150.0,0.0002,2]
[421213009,1777260652952,-150.0,0.0002,2]
[421213010,1777260652963,-221.35152428,0.0002,2]
[421213011,1777260652973,-1220.0,0.00020163,2]
[421213012,1777260652983,-3531.0,0.00020163,2]
[421213013,1777260652993,-2940.22552673,0.0002025,2]
[421213014,1777260653003,-1117.0,0.00020386,2]
[421213015,1777260653013,-179.04,0.000204,2]
[421213016,1777260653023,-241.69636041,0.00020476,2]
[421213017,1777260653033,-329.25942895,0.00020476,2]
[421213018,1777260653043,-337.72701952,0.00020476,2]
[421213019,1777260653053,-177.36832698,0.00020476,2]
[421213020,1777260653063,-776.39461126,0.00020476,2]
[421213021,1777260653073,-394.6599246,0.00020476,2]
[421213022,1777260653083,-321.89738802,0.00020476,2]
[421213023,1777260653093,-2350.96981264,0.00020476,2]
[421213024,1777260653103,-3830.47,0.00020548,2]
[421213025,1777260653113,-3830.47,0.00020548,2]
[421213026,1777260653124,-3830.47,0.00020548,2]
[421213027,1777260653133,-1394.1,0.00020822,2]
[421213028,1777260653143,-500.0,0.00020838,7]
[421213029,1777260653153,-450.0,0.00021,2]
[421213030,1777260653164,-4404.7375801,0.00021151,2]
[421213031,1777260653174,-693.3919763,0.00021267,2]
[421213032,1777260653184,-721.12765535,0.00021267,2]
[421213033,1777260653194,-1117.0,0.00021459,2]
[421213034,1777260653204,-1100.0,0.0002166,7]
[421213035,1777260653214,-1317.99,0.0002172,2]
[421213036,1777260653224,-3014.43,0.0002172,2]
[421213037,1777260653234,-1787.96143432,0.0002189,2]
[421213038,1777260653244,-500.0,0.00021915,2]
[421213039,1777260653254,-500.36730045,0.00021918,2]
[421213040,1777260653264,-151.0,0.00021918,2]
[421213041,1777260653274,-151.0,0.00021918,2]
[421213042,1777260653284,-151.0,0.00021918,2]
[421213043,1777260653293,-151.0,0.00021918,2]
[421213044,1777260653304,-151.0,0.00021918,2]
[421213045,1777260653314,-151.0,0.00021918,2]
[421213046,1777260653325,-151.0,0.00021918,2]
[421213047,1777260653338,-151.0,0.00021918,2]
[421213048,1777260653348,-151.0,0.00021918,2]
[421213049,1777260653357,-151.0,0.00021918,2]
[421213050,1777260653367,-151.0,0.00021918,2]
[421213051,1777260653377,-294.444736,0.00021918,2]
[421213052,1777260653386,-558.72191565,0.00021918,2]
[421213053,1777260653396,-339.36151,0.00021918,2]
[421213054,1777260653405,-339.36151,0.00021918,2]
[421213055,1777260653415,-339.36151,0.00021918,2]
[421213056,1777260653425,-339.36151,0.00021918,2]
[421213057,1777260653434,-339.36151,0.00021918,2]
[421213058,1777260653444,-339.36151,0.00021918,2]
[421213059,1777260653454,-339.36151,0.00021918,2]
[421213060,1777260653463,-339.36151,0.00021918,2]
[421213061,1777260653473,-339.36151,0.00021918,2]
[421213062,1777260653482,-339.36151,0.00021918,2]
[421213063,1777260653491,-339.36151,0.00021918,2]
[421213064,1777260653501,-339.36151,0.00021918,2]
[421213065,1777260653510,-339.36151,0.00021918,2]
[421213066,1777260653520,-339.36151,0.00021918,2]
[421213067,1777260653529,-339.36151,0.00021918,2]
[421213068,1777260653539,-339.36151,0.00021918,2]
[421213069,1777260653549,-339.36151,0.00021918,2]
[421213070,1777260653558,-339.36151,0.00021918,2]
[421213071,1777260653568,-339.36151,0.00021918,2]
[421213072,1777260653577,-339.36152,0.00021918,2]
[421213073,1777260653586,-809.6,0.00021918,2]
[421213074,1777260653596,-166.0,0.00021918,2]
[421213075,1777260653605,-166.0,0.00021918,2]
[421213076,1777260653615,-166.0,0.00021918,2]
[421213077,1777260653624,-166.0,0.00021918,2]
[421213078,1777260653633,-166.0,0.00021918,2]
[421213079,1777260653643,-166.0,0.00021918,2]
[421213080,1777260653652,-166.0,0.00021918,2]
[421213081,1777260653662,-166.0,0.00021918,2]
[421213082,1777260653671,-172.0,0.00021918,2]
[421213083,1777260653681,-150.0,0.00021918,2]
[421213084,1777260653690,-150.0,0.00021918,2]
[421213085,1777260653700,-172.28931184,0.00021918,2]
[421213086,1777260653709,-150.0,0.00021918,2]
[421213087,1777260653719,-150.0,0.00021918,2]
[421213088,1777260653729,-150.0,0.00021918,2]
[421213089,1777260653739,-150.0,0.00021918,2]
[421213090,1777260653748,-150.0,0.00021918,2]
[421213091,1777260653758,-150.0,0.00021918,2]
[421213092,1777260653767,-150.0,0.00021918,2]
[421213093,1777260653786,-150.0,0.00021918,2]
[421213094,1777260653799,-150.0,0.00021918,2]
[421213095,1777260653809,-150.0,0.00021918,2]
[421213096,1777260653818,-150.0,0.00021918,2]
[421213097,1777260653828,-150.0,0.00021918,2]
[421213098,1777260653838,-150.0,0.00021918,2]
[421213099,1777260653848,-150.0,0.00021918,2]
[421213100,1777260653859,-150.0,0.00021918,2]
[421213101,1777260653869,-150.0,0.00021918,2]
[421213102,1777260653879,-150.0,0.00021918,2]
[421213103,1777260653889,-150.0,0.00021918,2]
[421213104,1777260653899,-307.26,0.00022466,2]
[421213105,1777260653909,-1117.0,0.00022589,2]
[421213106,1777260653919,-2500.0,0.00022598,7]
[421213107,1777260653929,-486.95,0.00022798,2]
[421213108,1777260653939,-486.95,0.00022798,2]
[421213109,1777260653948,-486.95,0.00022798,2]
[421213110,1777260653958,-150.0,0.00022857,2]
[421213111,1777260653969,-4516.10789165,0.00022898,2]
[421213112,1777260653979,-1000.0,0.00022951,8]
[421213113,1777260653989,-1000.0,0.00022951,8]
[421213114,1777260654000,-1000.0,0.00022951,8]
[421213115,1777260654010,-1000.0,0.00022951,8]
[421213116,1777260654019,-1000.0,0.00022951,8]
[421213117,1777260654029,-1000.0,0.00022951,8]